[Event "Titled Tuesday Blitz October 19 2021"]
[White "Demchenko, Anton"]
[Black "Zubov, Alexander"]
[WhiteFideId "4160258"]
[BlackFideId "14109409"]
[WhiteElo "2583"]
[BlackElo "2685"]
[Result "1-0"]
[Round "05"]
[TimeControl "180+1"]
[Date "2021.10.19"]
[WhiteClock "0:00:09"]
[BlackClock "0:00:20"]

1. e4 {[%clk 0:03:00]}  c5 {[%clk 0:02:59]} 2. Nf3 {[%clk 0:03:01]}  e6 {[%clk 0:02:59]} 3. d4 {[%clk 0:03:01]}  cxd4 {[%clk 0:03:00]} 4. Nxd4 {[%clk 0:03:02]}  a6 {[%clk 0:03:01]} 5. a3 {[%clk 0:03:02]}  Nf6 {[%clk 0:02:58]} 6. Nc3 {[%clk 0:03:02]}  Qc7 {[%clk 0:02:55]} 7. f4 {[%clk 0:03:01]}  d6 {[%clk 0:02:53]} 8. g4 {[%clk 0:03:01]}  b5 {[%clk 0:02:50]} 9. g5 {[%clk 0:03:00]}  Nfd7 {[%clk 0:02:50]} 10. Bg2 {[%clk 0:02:55]}  Bb7 {[%clk 0:02:44]} 11. O-O {[%clk 0:02:55]}  Nc6 {[%clk 0:02:42]} 12. Be3 {[%clk 0:02:47]}  Na5 {[%clk 0:02:40]} 13. Kh1 {[%clk 0:02:12]}  Nc4 {[%clk 0:02:37]} 14. Bc1 {[%clk 0:02:12]}  Be7 {[%clk 0:02:31]} 15. b3 {[%clk 0:02:11]}  Na5 {[%clk 0:02:28]} 16. Bb2 {[%clk 0:02:11]}  O-O {[%clk 0:02:18]} 17. Qh5 {[%clk 0:02:08]}  Nc6 {[%clk 0:02:06]} 18. Nf5 {[%clk 0:02:05]}  exf5 {[%clk 0:01:31]} 19. Nd5 {[%clk 0:02:04]}  Qd8 {[%clk 0:01:32]} 20. exf5 {[%clk 0:02:02]}  f6 {[%clk 0:01:05]} 21. Nc7 {[%clk 0:01:24]}  Na5 {[%clk 0:00:33]} 22. Bxb7 {[%clk 0:01:20]}  Nxb7 {[%clk 0:00:33]} 23. Ne6 {[%clk 0:01:15]}  Qe8 {[%clk 0:00:33]} 24. Qg4 {[%clk 0:01:03]}  fxg5 {[%clk 0:00:20]} 25. Nxg7 {[%clk 0:00:56]}  Qf7 {[%clk 0:00:17]} 26. fxg5 {[%clk 0:00:49]}  Qd5+ {[%clk 0:00:17]} 27. Rf3 {[%clk 0:00:49]}  Ne5 {[%clk 0:00:17]} 28. Bxe5 {[%clk 0:00:49]}  Qxe5 {[%clk 0:00:17]} 29. Rg1 {[%clk 0:00:39]}  Kxg7 {[%clk 0:00:11]} 30. f6+ {[%clk 0:00:38]}  Kh8 {[%clk 0:00:11]} 31. Rf5 {[%clk 0:00:17]}  Qe6 {[%clk 0:00:10]} 32. g6 {[%clk 0:00:16]}  hxg6 {[%clk 0:00:09]} 33. Qh3+ {[%clk 0:00:08]}  Kg8 {[%clk 0:00:08]} 34. Rxg6+ {[%clk 0:00:08]}  Kf7 {[%clk 0:00:09]} 35. fxe7+ {[%clk 0:00:08]}  Kxg6 {[%clk 0:00:08]} 36. Qg4+ {[%clk 0:00:05]}  Kh7 {[%clk 0:00:08]} 37. Rh5+ {[%clk 0:00:05]}  Qh6 {[%clk 0:00:09]} 38. Rxh6+ {[%clk 0:00:05]}  Kxh6 {[%clk 0:00:10]} 39. exf8=Q+ {[%clk 0:00:06]}  Rxf8 {[%clk 0:00:11]} 40. Qh4+ {[%clk 0:00:06]}  Kg6 {[%clk 0:00:11]} 41. Qg3+ {[%clk 0:00:06]}  Kf7 {[%clk 0:00:11]} 42. Qf3+ {[%clk 0:00:06]}  Ke7 {[%clk 0:00:11]} 43. Qxb7+ {[%clk 0:00:07]}  Ke6 {[%clk 0:00:12]} 44. Qxa6 {[%clk 0:00:07]}  Rf1+ {[%clk 0:00:12]} 45. Kg2 {[%clk 0:00:08]}  Rc1 {[%clk 0:00:13]} 46. Qxb5 {[%clk 0:00:08]}  Rxc2+ {[%clk 0:00:14]} 47. Kg3 {[%clk 0:00:08]}  Rc3+ {[%clk 0:00:15]} 48. Kg4 {[%clk 0:00:09]}  Re3 {[%clk 0:00:15]} 49. Qc4+ {[%clk 0:00:09]}  d5 {[%clk 0:00:15]} 50. Qc8+ {[%clk 0:00:09]}  Ke5 {[%clk 0:00:16]} 51. Qh8+ {[%clk 0:00:09]}  Ke4 {[%clk 0:00:16]} 52. a4 {[%clk 0:00:09]}  d4 {[%clk 0:00:16]} 53. Qe8+ {[%clk 0:00:09]}  Kd3 {[%clk 0:00:17]} 54. Qg6+ {[%clk 0:00:09]}  Kc3 {[%clk 0:00:17]} 55. Kf4 {[%clk 0:00:09]}  Re2 {[%clk 0:00:17]} 56. Qg7 {[%clk 0:00:09]}  Rf2+ {[%clk 0:00:15]} 57. Ke4 {[%clk 0:00:09]}  Re2+ {[%clk 0:00:16]} 58. Kd5 {[%clk 0:00:09]}  Rd2 {[%clk 0:00:17]} 59. a5 {[%clk 0:00:09]}  Kxb3 {[%clk 0:00:17]} 60. a6 {[%clk 0:00:09]}  d3 {[%clk 0:00:18]} 61. a7 {[%clk 0:00:10]}  Ra2 {[%clk 0:00:18]} 62. Qb7+ {[%clk 0:00:09]}  Kc2 {[%clk 0:00:19]} 63. a8=Q {[%clk 0:00:10]}  d2 {[%clk 0:00:20]} 64. Qxa2+ {[%clk 0:00:09]} 1-0


[Site "https://www.chess.com"]

[Event "Titled Tuesday Blitz October 19 2021"]
[White "Harshavardhan G B"]
[Black "Onyshchuk, Volodymyr"]
[WhiteFideId "25059009"]
[BlackFideId "14114038"]
[WhiteElo "1825"]
[BlackElo "2603"]
[Result "1-0"]
[Round "05"]
[TimeControl "180+1"]
[Date "2021.10.19"]
[WhiteClock "0:00:06"]
[BlackClock "0:00:03"]

1. d4 {[%clk 0:03:00]}  d6 {[%clk 0:02:59]} 2. e4 {[%clk 0:02:59]}  Nf6 {[%clk 0:02:57]} 3. Nc3 {[%clk 0:02:58]}  g6 {[%clk 0:02:58]} 4. Be3 {[%clk 0:02:54]}  c6 {[%clk 0:02:58]} 5. Qd2 {[%clk 0:02:53]}  Nbd7 {[%clk 0:02:57]} 6. O-O-O {[%clk 0:02:51]}  b5 {[%clk 0:02:52]} 7. d5 {[%clk 0:02:38]}  cxd5 {[%clk 0:02:49]} 8. Bxb5 {[%clk 0:02:23]}  dxe4 {[%clk 0:02:38]} 9. Bc6 {[%clk 0:02:12]}  Rb8 {[%clk 0:02:38]} 10. Bxa7 {[%clk 0:02:10]}  Qc7 {[%clk 0:02:38]} 11. Bxd7+ {[%clk 0:02:07]}  Bxd7 {[%clk 0:02:37]} 12. Bxb8 {[%clk 0:02:07]}  Qxb8 {[%clk 0:02:37]} 13. Qd4 {[%clk 0:02:04]}  Bg7 {[%clk 0:02:37]} 14. Nd5 {[%clk 0:01:54]}  Be6 {[%clk 0:02:05]} 15. Nxf6+ {[%clk 0:01:22]}  Bxf6 {[%clk 0:02:05]} 16. Qa4+ {[%clk 0:01:23]}  Kf8 {[%clk 0:02:00]} 17. c3 {[%clk 0:01:21]}  Kg7 {[%clk 0:01:54]} 18. Ne2 {[%clk 0:01:11]}  Qb6 {[%clk 0:01:47]} 19. Nd4 {[%clk 0:00:57]}  Bg4 {[%clk 0:01:23]} 20. f3 {[%clk 0:00:44]}  exf3 {[%clk 0:01:19]} 21. gxf3 {[%clk 0:00:45]}  Bh3 {[%clk 0:01:15]} 22. Qb3 {[%clk 0:00:41]}  Qa7 {[%clk 0:01:09]} 23. Rhe1 {[%clk 0:00:31]}  Qa8 {[%clk 0:01:04]} 24. a4 {[%clk 0:00:17]}  Rb8 {[%clk 0:01:02]} 25. Qa3 {[%clk 0:00:16]}  e5 {[%clk 0:00:59]} 26. Nb5 {[%clk 0:00:15]}  Bf5 {[%clk 0:00:53]} 27. f4 {[%clk 0:00:11]}  Qf3 {[%clk 0:00:49]} 28. Nxd6 {[%clk 0:00:10]}  Qxf4+ {[%clk 0:00:47]} 29. Rd2 {[%clk 0:00:10]}  Bd3 {[%clk 0:00:42]} 30. Qc5 {[%clk 0:00:06]}  Bg5 {[%clk 0:00:36]} 31. Qxe5+ {[%clk 0:00:06]}  Qxe5 {[%clk 0:00:32]} 32. Rxe5 {[%clk 0:00:06]}  Bf4 {[%clk 0:00:32]} 33. Rd5 {[%clk 0:00:06]}  Ba6 {[%clk 0:00:09]} 34. b4 {[%clk 0:00:06]}  Ra8 {[%clk 0:00:05]} 35. b5 {[%clk 0:00:05]}  Bc8 {[%clk 0:00:05]} 36. Nxc8 {[%clk 0:00:05]}  Rxc8 {[%clk 0:00:05]} 37. Kc2 {[%clk 0:00:06]}  Rc4 {[%clk 0:00:05]} 38. Kb3 {[%clk 0:00:06]}  Re4 {[%clk 0:00:03]} 39. R2d4 {[%clk 0:00:06]} 1-0


[Site "https://www.chess.com"]

[Event "Titled Tuesday Blitz October 19 2021"]
[White "Hjartarson, Johann"]
[Black "Kovalev, Vladislav"]
[WhiteFideId "2300044"]
[BlackFideId "13504398"]
[WhiteElo "2502"]
[BlackElo "2573"]
[Result "0-1"]
[Round "05"]
[TimeControl "180+1"]
[Date "2021.10.19"]
[WhiteClock "0:00:01"]
[BlackClock "0:00:08"]

1. e4 {[%clk 0:03:00]}  e5 {[%clk 0:02:59]} 2. Nf3 {[%clk 0:03:00]}  Nc6 {[%clk 0:03:00]} 3. Bb5 {[%clk 0:02:59]}  a6 {[%clk 0:03:00]} 4. Ba4 {[%clk 0:02:59]}  Nf6 {[%clk 0:03:00]} 5. O-O {[%clk 0:02:59]}  Be7 {[%clk 0:03:00]} 6. Re1 {[%clk 0:02:57]}  b5 {[%clk 0:03:01]} 7. Bb3 {[%clk 0:02:57]}  d6 {[%clk 0:03:02]} 8. c3 {[%clk 0:02:56]}  O-O {[%clk 0:03:02]} 9. d4 {[%clk 0:02:56]}  Bg4 {[%clk 0:03:02]} 10. d5 {[%clk 0:02:56]}  Na5 {[%clk 0:03:02]} 11. Bc2 {[%clk 0:02:56]}  c6 {[%clk 0:03:02]} 12. h3 {[%clk 0:02:56]}  Bc8 {[%clk 0:03:03]} 13. dxc6 {[%clk 0:02:55]}  Qc7 {[%clk 0:03:03]} 14. Nbd2 {[%clk 0:02:55]}  Qxc6 {[%clk 0:03:04]} 15. Nf1 {[%clk 0:02:55]}  h6 {[%clk 0:03:04]} 16. Ng3 {[%clk 0:02:55]}  Re8 {[%clk 0:03:03]} 17. a4 {[%clk 0:02:54]}  Be6 {[%clk 0:03:03]} 18. Nh4 {[%clk 0:02:42]}  Nc4 {[%clk 0:02:48]} 19. Nhf5 {[%clk 0:02:41]}  Bf8 {[%clk 0:02:49]} 20. Qf3 {[%clk 0:02:28]}  Nh7 {[%clk 0:02:33]} 21. Nh5 {[%clk 0:02:18]}  Kh8 {[%clk 0:02:28]} 22. Qg3 {[%clk 0:02:02]}  g6 {[%clk 0:01:34]} 23. Nxh6 {[%clk 0:01:42]}  Bxh6 {[%clk 0:01:35]} 24. Bxh6 {[%clk 0:01:41]}  Rg8 {[%clk 0:01:35]} 25. axb5 {[%clk 0:01:29]}  Qxb5 {[%clk 0:01:36]} 26. b3 {[%clk 0:01:13]}  Nb6 {[%clk 0:01:34]} 27. c4 {[%clk 0:01:09]}  Qc6 {[%clk 0:01:31]} 28. Nf4 {[%clk 0:00:54]}  exf4 {[%clk 0:01:30]} 29. Bxf4 {[%clk 0:00:54]}  Rgd8 {[%clk 0:01:25]} 30. Red1 {[%clk 0:00:51]}  Nc8 {[%clk 0:00:59]} 31. Rd2 {[%clk 0:00:27]}  a5 {[%clk 0:00:52]} 32. Qc3+ {[%clk 0:00:20]}  Kg8 {[%clk 0:00:51]} 33. Rxa5 {[%clk 0:00:20]}  Rxa5 {[%clk 0:00:51]} 34. Qxa5 {[%clk 0:00:19]}  Rd7 {[%clk 0:00:50]} 35. Bd3 {[%clk 0:00:16]}  Nf6 {[%clk 0:00:48]} 36. Qc3 {[%clk 0:00:15]}  Ne8 {[%clk 0:00:48]} 37. e5 {[%clk 0:00:11]}  d5 {[%clk 0:00:48]} 38. Bf1 {[%clk 0:00:10]}  dxc4 {[%clk 0:00:47]} 39. Rxd7 {[%clk 0:00:10]}  Qxd7 {[%clk 0:00:48]} 40. bxc4 {[%clk 0:00:09]}  Qc6 {[%clk 0:00:48]} 41. Qd4 {[%clk 0:00:08]}  Nb6 {[%clk 0:00:47]} 42. c5 {[%clk 0:00:07]}  Nd7 {[%clk 0:00:48]} 43. Be3 {[%clk 0:00:06]}  Nc7 {[%clk 0:00:45]} 44. f4 {[%clk 0:00:05]}  Nd5 {[%clk 0:00:45]} 45. Bf2 {[%clk 0:00:05]}  Qc8 {[%clk 0:00:25]} 46. Be2 {[%clk 0:00:05]}  Nb8 {[%clk 0:00:26]} 47. Bf3 {[%clk 0:00:05]}  Nc6 {[%clk 0:00:26]} 48. Qd2 {[%clk 0:00:05]}  Qd7 {[%clk 0:00:26]} 49. Kh2 {[%clk 0:00:04]}  Nce7 {[%clk 0:00:25]} 50. g4 {[%clk 0:00:04]}  Qb5 {[%clk 0:00:20]} 51. Bh4 {[%clk 0:00:04]}  Qxc5 {[%clk 0:00:18]} 52. Be4 {[%clk 0:00:03]}  Nc3 {[%clk 0:00:08]} 53. Qd8+ {[%clk 0:00:02]}  Kh7 {[%clk 0:00:08]} 54. Bxe7 {[%clk 0:00:01]}  Qf2+ {[%clk 0:00:08]} 0-1


[Site "https://www.chess.com"]

[Event "Titled Tuesday Blitz October 19 2021"]
[White "Khanin, Semen"]
[Black "Papasimakopoulos, Alexandros"]
[WhiteFideId "4111990"]
[BlackFideId "4244125"]
[WhiteElo "2436"]
[BlackElo "2352"]
[Result "1-0"]
[Round "05"]
[TimeControl "180+1"]
[Date "2021.10.19"]
[WhiteClock "0:00:12"]
[BlackClock "0:00:07"]

1. Nf3 {[%clk 0:03:00]}  f5 {[%clk 0:02:43]} 2. Nc3 {[%clk 0:02:48]}  Nf6 {[%clk 0:02:38]} 3. d3 {[%clk 0:02:48]}  d6 {[%clk 0:02:38]} 4. e4 {[%clk 0:02:48]}  e5 {[%clk 0:02:38]} 5. Bg5 {[%clk 0:02:37]}  h6 {[%clk 0:02:36]} 6. Bxf6 {[%clk 0:02:35]}  Qxf6 {[%clk 0:02:36]} 7. d4 {[%clk 0:02:29]}  exd4 {[%clk 0:02:30]} 8. Nd5 {[%clk 0:02:28]}  Qf7 {[%clk 0:02:27]} 9. Qxd4 {[%clk 0:02:27]}  Nc6 {[%clk 0:02:26]} 10. Qc3 {[%clk 0:02:26]}  fxe4 {[%clk 0:02:22]} 11. Bc4 {[%clk 0:02:25]}  exf3 {[%clk 0:02:15]} 12. O-O-O {[%clk 0:02:26]}  Be6 {[%clk 0:02:04]} 13. Rhe1 {[%clk 0:02:23]}  Ne5 {[%clk 0:02:03]} 14. Rxe5 {[%clk 0:02:14]}  dxe5 {[%clk 0:02:01]} 15. Nxc7+ {[%clk 0:02:14]}  Ke7 {[%clk 0:01:24]} 16. Nxe6 {[%clk 0:02:08]}  fxg2 {[%clk 0:01:20]} 17. Qa3+ {[%clk 0:02:01]}  Kf6 {[%clk 0:01:13]} 18. Qf3+ {[%clk 0:02:01]}  Ke7 {[%clk 0:01:06]} 19. Qxb7+ {[%clk 0:01:57]}  Kf6 {[%clk 0:01:05]} 20. Qf3+ {[%clk 0:01:31]}  Ke7 {[%clk 0:01:04]} 21. Qxa8 {[%clk 0:01:26]}  Qe8 {[%clk 0:00:58]} 22. Qxg2 {[%clk 0:01:19]}  g5 {[%clk 0:00:56]} 23. Qe4 {[%clk 0:01:13]}  Qb8 {[%clk 0:00:54]} 24. Nd4 {[%clk 0:01:07]}  Qc7 {[%clk 0:00:47]} 25. Nc6+ {[%clk 0:01:01]}  Kf6 {[%clk 0:00:47]} 26. Rd3 {[%clk 0:00:56]}  g4 {[%clk 0:00:42]} 27. Qd5 {[%clk 0:00:26]}  h5 {[%clk 0:00:38]} 28. Qe6+ {[%clk 0:00:26]}  Kg5 {[%clk 0:00:38]} 29. Nxe5 {[%clk 0:00:25]}  Bh6 {[%clk 0:00:17]} 30. Nf7+ {[%clk 0:00:23]}  Kh4+ {[%clk 0:00:17]} 31. Nxh6 {[%clk 0:00:24]}  Qf4+ {[%clk 0:00:17]} 32. Kb1 {[%clk 0:00:19]}  Rxh6 {[%clk 0:00:17]} 33. Qe3 {[%clk 0:00:16]}  Qxe3 {[%clk 0:00:16]} 34. Rxe3 {[%clk 0:00:16]}  Rf6 {[%clk 0:00:17]} 35. Re2 {[%clk 0:00:13]}  Kh3 {[%clk 0:00:17]} 36. a4 {[%clk 0:00:12]}  Kxh2 {[%clk 0:00:17]} 37. f3+ {[%clk 0:00:12]}  Kg3 {[%clk 0:00:15]} 38. fxg4 {[%clk 0:00:13]}  hxg4 {[%clk 0:00:16]} 39. Bd5 {[%clk 0:00:13]}  Rd6 {[%clk 0:00:12]} 40. c4 {[%clk 0:00:13]}  a5 {[%clk 0:00:13]} 41. Re5 {[%clk 0:00:12]}  Kf4 {[%clk 0:00:13]} 42. Re8 {[%clk 0:00:12]}  g3 {[%clk 0:00:13]} 43. Rf8+ {[%clk 0:00:12]}  Kg4 {[%clk 0:00:13]} 44. Rg8+ {[%clk 0:00:12]}  Kf4 {[%clk 0:00:13]} 45. Kc2 {[%clk 0:00:13]}  Rh6 {[%clk 0:00:12]} 46. Kc3 {[%clk 0:00:12]}  Rh3 {[%clk 0:00:12]} 47. Kd4 {[%clk 0:00:12]}  Rh4 {[%clk 0:00:12]} 48. Kc5 {[%clk 0:00:12]}  Rh2 {[%clk 0:00:12]} 49. Kb5 {[%clk 0:00:12]}  Rxb2+ {[%clk 0:00:12]} 50. Kxa5 {[%clk 0:00:12]}  Rb1 {[%clk 0:00:11]} 51. Ka6 {[%clk 0:00:12]}  Rb2 {[%clk 0:00:03]} 52. a5 {[%clk 0:00:13]}  Ke5 {[%clk 0:00:04]} 53. Rg6 {[%clk 0:00:11]}  Rb4 {[%clk 0:00:03]} 54. Rxg3 {[%clk 0:00:11]}  Kd6 {[%clk 0:00:03]} 55. Rg6+ {[%clk 0:00:11]}  Kc5 {[%clk 0:00:04]} 56. Rb6 {[%clk 0:00:10]}  Ra4 {[%clk 0:00:04]} 57. Rb5+ {[%clk 0:00:10]}  Kd6 {[%clk 0:00:05]} 58. Kb6 {[%clk 0:00:11]}  Ra1 {[%clk 0:00:06]} 59. a6 {[%clk 0:00:11]}  Rg1 {[%clk 0:00:06]} 60. a7 {[%clk 0:00:11]}  Rg8 {[%clk 0:00:07]} 61. a8=Q {[%clk 0:00:12]} 1-0


[Site "https://www.chess.com"]

[Event "Titled Tuesday Blitz October 19 2021"]
[White "Langrock, Hannes"]
[Black "Abarca Gonzalez, Nicolas"]
[WhiteFideId "4655290"]
[BlackFideId "3409422"]
[WhiteElo "2325"]
[BlackElo "2504"]
[Result "0-1"]
[Round "05"]
[TimeControl "180+1"]
[Date "2021.10.19"]
[WhiteClock "0:00:04"]
[BlackClock "0:01:16"]

1. d4 {[%clk 0:02:58]}  Nf6 {[%clk 0:02:54]} 2. c4 {[%clk 0:02:58]}  e5 {[%clk 0:02:53]} 3. dxe5 {[%clk 0:02:56]}  Ng4 {[%clk 0:02:53]} 4. Bf4 {[%clk 0:02:56]}  g5 {[%clk 0:02:52]} 5. Bd2 {[%clk 0:02:53]}  Bg7 {[%clk 0:02:52]} 6. Nc3 {[%clk 0:02:50]}  Nxe5 {[%clk 0:02:51]} 7. b3 {[%clk 0:02:23]}  Nbc6 {[%clk 0:02:47]} 8. g3 {[%clk 0:02:22]}  Qe7 {[%clk 0:02:44]} 9. Qb1 {[%clk 0:02:06]}  Nb4 {[%clk 0:02:39]} 10. Bg2 {[%clk 0:01:51]}  d5 {[%clk 0:02:21]} 11. cxd5 {[%clk 0:01:41]}  O-O {[%clk 0:02:13]} 12. Nf3 {[%clk 0:01:35]}  Nbd3+ {[%clk 0:02:08]} 13. Kf1 {[%clk 0:01:31]}  Nxf3 {[%clk 0:01:58]} 14. Bxf3 {[%clk 0:01:17]}  Bh3+ {[%clk 0:01:53]} 15. Kg1 {[%clk 0:01:06]}  Nxf2 {[%clk 0:01:40]} 16. Kxf2 {[%clk 0:01:01]}  Bxc3 {[%clk 0:01:41]} 17. Bxc3 {[%clk 0:00:48]}  Qc5+ {[%clk 0:01:40]} 18. e3 {[%clk 0:00:49]}  Qxc3 {[%clk 0:01:38]} 19. Qc1 {[%clk 0:00:50]}  Qf6 {[%clk 0:01:30]} 20. Ke2 {[%clk 0:00:20]}  Rfe8 {[%clk 0:01:27]} 21. Qc5 {[%clk 0:00:14]}  g4 {[%clk 0:01:25]} 22. Bxg4 {[%clk 0:00:04]}  Bxg4+ {[%clk 0:01:16]} 0-1


[Site "https://www.chess.com"]

[Event "Titled Tuesday Blitz October 19 2021"]
[White "Le, Tuan Minh"]
[Black "Jaracz, Pawel"]
[WhiteFideId "12401153"]
[BlackFideId "1102222"]
[WhiteElo "2450"]
[BlackElo "2495"]
[Result "1-0"]
[Round "05"]
[TimeControl "180+1"]
[Date "2021.10.19"]
[WhiteClock "0:00:09"]
[BlackClock "0:00:26"]

1. d4 {[%clk 0:03:00]}  Nf6 {[%clk 0:02:59]} 2. Nf3 {[%clk 0:02:55]}  e6 {[%clk 0:02:57]} 3. Bf4 {[%clk 0:02:55]}  c5 {[%clk 0:02:57]} 4. c3 {[%clk 0:02:55]}  d5 {[%clk 0:02:51]} 5. e3 {[%clk 0:02:53]}  Qb6 {[%clk 0:02:51]} 6. Qc2 {[%clk 0:02:53]}  Bd6 {[%clk 0:02:49]} 7. Bg3 {[%clk 0:02:48]}  O-O {[%clk 0:02:46]} 8. Nbd2 {[%clk 0:02:47]}  Rd8 {[%clk 0:02:40]} 9. Bh4 {[%clk 0:02:43]}  Nbd7 {[%clk 0:02:35]} 10. Bd3 {[%clk 0:02:43]}  Re8 {[%clk 0:02:31]} 11. O-O {[%clk 0:02:40]}  h6 {[%clk 0:02:25]} 12. Rfe1 {[%clk 0:02:34]}  Qc7 {[%clk 0:02:20]} 13. c4 {[%clk 0:02:15]}  cxd4 {[%clk 0:02:18]} 14. Nxd4 {[%clk 0:02:15]}  Bxh2+ {[%clk 0:02:17]} 15. Kh1 {[%clk 0:02:06]}  Be5 {[%clk 0:02:05]} 16. N2f3 {[%clk 0:01:58]}  dxc4 {[%clk 0:02:01]} 17. Qxc4 {[%clk 0:01:54]}  Qxc4 {[%clk 0:01:53]} 18. Bxc4 {[%clk 0:01:53]}  a6 {[%clk 0:01:52]} 19. Nxe5 {[%clk 0:01:50]}  Nxe5 {[%clk 0:01:52]} 20. Be2 {[%clk 0:01:50]}  Ne4 {[%clk 0:01:47]} 21. f4 {[%clk 0:01:22]}  Ng6 {[%clk 0:01:45]} 22. Bf3 {[%clk 0:01:09]}  Nc5 {[%clk 0:01:37]} 23. Bg3 {[%clk 0:01:07]}  e5 {[%clk 0:01:34]} 24. Nb3 {[%clk 0:00:22]}  Nd3 {[%clk 0:01:28]} 25. Red1 {[%clk 0:00:18]}  exf4 {[%clk 0:01:27]} 26. exf4 {[%clk 0:00:19]}  Ngxf4 {[%clk 0:01:22]} 27. Rd2 {[%clk 0:00:19]}  Bf5 {[%clk 0:01:21]} 28. Rad1 {[%clk 0:00:18]}  Re7 {[%clk 0:01:17]} 29. Na5 {[%clk 0:00:10]}  g5 {[%clk 0:01:03]} 30. Bxb7 {[%clk 0:00:10]}  Rb8 {[%clk 0:00:48]} 31. Bxa6 {[%clk 0:00:10]}  Re3 {[%clk 0:00:43]} 32. Bxd3 {[%clk 0:00:10]}  Nxd3 {[%clk 0:00:41]} 33. Bxb8 {[%clk 0:00:10]}  Be4 {[%clk 0:00:29]} 34. Nc4 {[%clk 0:00:10]}  Rg3 {[%clk 0:00:28]} 35. Kg1 {[%clk 0:00:10]}  Rg4 {[%clk 0:00:28]} 36. Ne3 {[%clk 0:00:08]}  Rh4 {[%clk 0:00:26]} 37. Rxd3 {[%clk 0:00:09]} 1-0


[Site "https://www.chess.com"]

[Event "Titled Tuesday Blitz October 19 2021"]
[White "Mikhalevski, Victor"]
[Black "Garcia Ramos, Daniel"]
[WhiteFideId "2801914"]
[BlackFideId "32010311"]
[WhiteElo "2577"]
[BlackElo "2267"]
[Result "1-0"]
[Round "05"]
[TimeControl "180+1"]
[Date "2021.10.19"]
[WhiteClock "0:00:09"]
[BlackClock "0:00:01"]

1. d4 {[%clk 0:03:00]}  d5 {[%clk 0:02:59]} 2. c4 {[%clk 0:02:58]}  e6 {[%clk 0:02:59]} 3. Nf3 {[%clk 0:02:58]}  Nf6 {[%clk 0:02:59]} 4. g3 {[%clk 0:02:59]}  Bb4+ {[%clk 0:02:55]} 5. Nbd2 {[%clk 0:02:57]}  O-O {[%clk 0:02:53]} 6. Bg2 {[%clk 0:02:56]}  dxc4 {[%clk 0:02:39]} 7. Qc2 {[%clk 0:02:56]}  c5 {[%clk 0:02:22]} 8. dxc5 {[%clk 0:02:52]}  Bxc5 {[%clk 0:02:13]} 9. O-O {[%clk 0:02:49]}  Nc6 {[%clk 0:02:12]} 10. Nxc4 {[%clk 0:02:45]}  Bd7 {[%clk 0:02:08]} 11. Nce5 {[%clk 0:02:33]}  Nxe5 {[%clk 0:02:08]} 12. Qxc5 {[%clk 0:02:32]}  Nxf3+ {[%clk 0:02:03]} 13. Bxf3 {[%clk 0:02:32]}  Bc6 {[%clk 0:01:32]} 14. Bxc6 {[%clk 0:02:28]}  Qc7 {[%clk 0:01:32]} 15. Bf4 {[%clk 0:02:23]}  Qxc6 {[%clk 0:01:31]} 16. Qxc6 {[%clk 0:02:24]}  bxc6 {[%clk 0:01:32]} 17. Rac1 {[%clk 0:02:23]}  Rfc8 {[%clk 0:01:26]} 18. Rc4 {[%clk 0:02:22]}  a5 {[%clk 0:01:13]} 19. Rfc1 {[%clk 0:02:21]}  Ra6 {[%clk 0:01:13]} 20. b3 {[%clk 0:02:15]}  Kf8 {[%clk 0:01:12]} 21. Ra4 {[%clk 0:02:07]}  Rca8 {[%clk 0:01:03]} 22. Bd2 {[%clk 0:02:03]}  Nd7 {[%clk 0:00:58]} 23. g4 {[%clk 0:01:54]}  Ke7 {[%clk 0:00:58]} 24. g5 {[%clk 0:01:53]}  f6 {[%clk 0:00:56]} 25. h4 {[%clk 0:01:47]}  e5 {[%clk 0:00:52]} 26. Kg2 {[%clk 0:01:45]}  Ke6 {[%clk 0:00:52]} 27. gxf6 {[%clk 0:01:38]}  gxf6 {[%clk 0:00:51]} 28. Rg4 {[%clk 0:01:39]}  a4 {[%clk 0:00:48]} 29. b4 {[%clk 0:01:38]}  Rf8 {[%clk 0:00:29]} 30. Rgc4 {[%clk 0:01:33]}  Kd6 {[%clk 0:00:23]} 31. b5 {[%clk 0:01:11]}  Rg8+ {[%clk 0:00:23]} 32. Kf3 {[%clk 0:01:10]}  cxb5 {[%clk 0:00:23]} 33. Bb4+ {[%clk 0:01:10]}  Ke6 {[%clk 0:00:18]} 34. Rc6+ {[%clk 0:01:09]}  Rxc6 {[%clk 0:00:18]} 35. Rxc6+ {[%clk 0:01:10]}  Kd5 {[%clk 0:00:14]} 36. Rc7 {[%clk 0:01:03]}  e4+ {[%clk 0:00:10]} 37. Ke3 {[%clk 0:00:59]}  Ne5 {[%clk 0:00:08]} 38. Rc5+ {[%clk 0:00:58]}  Ke6 {[%clk 0:00:09]} 39. Rxb5 {[%clk 0:00:57]}  Rg4 {[%clk 0:00:06]} 40. h5 {[%clk 0:00:55]}  Rh4 {[%clk 0:00:05]} 41. Rb6+ {[%clk 0:00:50]}  Kf5 {[%clk 0:00:05]} 42. Rb5 {[%clk 0:00:45]}  Rxh5 {[%clk 0:00:04]} 43. Ra5 {[%clk 0:00:44]}  Rh3+ {[%clk 0:00:04]} 44. Kd4 {[%clk 0:00:41]}  Rh2 {[%clk 0:00:03]} 45. Ke3 {[%clk 0:00:34]}  Rh3+ {[%clk 0:00:02]} 46. Kd2 {[%clk 0:00:33]}  e3+ {[%clk 0:00:02]} 47. fxe3 {[%clk 0:00:32]}  Ke4 {[%clk 0:00:02]} 48. Rxa4 {[%clk 0:00:30]}  Nc4+ {[%clk 0:00:03]} 49. Kc3 {[%clk 0:00:30]}  Nxe3 {[%clk 0:00:03]} 50. Bc5+ {[%clk 0:00:16]}  Kd5 {[%clk 0:00:03]} 51. Ba7 {[%clk 0:00:15]}  Nc4+ {[%clk 0:00:02]} 52. Kb4 {[%clk 0:00:15]}  h5 {[%clk 0:00:01]} 53. e4+ {[%clk 0:00:15]}  Kxe4 {[%clk 0:00:01]} 54. Kxc4 {[%clk 0:00:15]}  Ke5 {[%clk 0:00:01]} 55. Ra5+ {[%clk 0:00:13]}  Kd6 {[%clk 0:00:01]} 56. Ra6+ {[%clk 0:00:13]}  Kc7 {[%clk 0:00:01]} 57. Rxf6 {[%clk 0:00:11]}  Ra3 {[%clk 0:00:01]} 58. Rf7+ {[%clk 0:00:09]}  Kc6 {[%clk 0:00:01]} 59. Bd4 {[%clk 0:00:08]}  Rxa2 {[%clk 0:00:01]} 60. Rf6+ {[%clk 0:00:09]}  Kc7 {[%clk 0:00:01]} 61. Kd5 {[%clk 0:00:09]}  Ra5+ {[%clk 0:00:02]} 62. Bc5 {[%clk 0:00:10]}  Ra1 {[%clk 0:00:02]} 63. Rf7+ {[%clk 0:00:10]}  Kd8 {[%clk 0:00:01]} 64. Kc6 {[%clk 0:00:10]}  Ra6+ {[%clk 0:00:02]} 65. Kd5 {[%clk 0:00:09]}  Ra1 {[%clk 0:00:02]} 66. Bd6 {[%clk 0:00:08]}  Ra5+ {[%clk 0:00:02]} 67. Ke6 {[%clk 0:00:08]}  Kc8 {[%clk 0:00:02]} 68. Rc7+ {[%clk 0:00:08]}  Kd8 {[%clk 0:00:03]} 69. Rb7 {[%clk 0:00:08]}  Ra8 {[%clk 0:00:03]} 70. Rh7 {[%clk 0:00:08]}  Kc8 {[%clk 0:00:01]} 71. Rxh5 {[%clk 0:00:08]}  Kb7 {[%clk 0:00:02]} 72. Rb5+ {[%clk 0:00:08]}  Kc6 {[%clk 0:00:01]} 73. Rc5+ {[%clk 0:00:09]}  Kb6 {[%clk 0:00:02]} 74. Rc1 {[%clk 0:00:09]}  Ra4 {[%clk 0:00:01]} 75. Kd7 {[%clk 0:00:09]} 1-0


[Site "https://www.chess.com"]